fUSD/lending_fUSD_20240126
["ID","MTS","AMOUNT","RATE_DAILY","PERIOD"]
[312829396,1706310643276,-127.0874517,0.00022999,2]
[312829397,1706310643322,-5322.84358909,0.00022999,2]
[312829398,1706310643331,-5863.36548057,0.00023,2]
[312829404,1706310646254,-150.0,0.00022548,2]
[312829405,1706310646264,-180.04912342,0.00022999,2]
[312829406,1706310646273,-5451.83721539,0.00023,2]
[312829407,1706310646311,-309.1711948,0.00023,2]
[312829408,1706310646322,-11583.08192213,0.00023,2]
[312829409,1706310646352,-13252.97645321,0.00023,2]
[312829410,1706310646363,-457.16083985,0.00023,2]
[312829411,1706310646374,-1129.3009947,0.00023,2]
[312829412,1706310646385,-1746.80949753,0.00023,2]
[312829413,1706310646396,-349.52660475,0.00023,2]
[312829414,1706310646410,-1403.37594009,0.00023,2]
[312829415,1706310646482,-4227.49954603,0.00023,2]
[312829416,1706310646493,-547.28982238,0.00023,2]
[312829417,1706310646506,-379.80612017,0.00023,2]
[312829418,1706310646537,-8579.97989359,0.00023,2]
[312829419,1706310646594,-23825.95453527,0.00023,2]
[312829425,1706310707208,1228.53056958,0.00020428,2]
[312829426,1706310793377,1044.80909175,0.00020428,2]
[312829427,1706311017892,201.61,0.00019762,2]
[312829428,1706311081162,2000.0,0.00021383,2]
[312829429,1706311088980,153.12001444,0.0002158,2]
[312829430,1706311136820,23900.0,0.00021314,2]
[312829431,1706311147348,640.0,0.00021337,2]
[312829432,1706311163584,500.0,0.00021356,2]
[312829433,1706311163681,240.26,0.00021356,2]
[312829434,1706311174767,750.0,0.00021354,2]
[312829435,1706311187673,166.37,0.00021348,2]
[312829436,1706311188723,287.41314516,0.00020894,2]
[312829437,1706311208138,150.0,0.00020894,2]
[312829438,1706311208347,150.0,0.00020894,2]
[312829439,1706311208797,150.0,0.00020894,2]
[312829440,1706311208994,150.0,0.00020894,2]
[312829441,1706311209157,150.0,0.00020894,2]
[312829442,1706311209531,150.0,0.00020894,2]
[312829443,1706311209741,150.0,0.00020894,2]
[312829444,1706311209912,150.0,0.00020894,2]
[312829445,1706311210099,150.0,0.00020894,2]
[312829446,1706311210282,150.0,0.00020894,2]
[312829447,1706311210504,150.0,0.00020894,2]
[312829448,1706311211290,150.0,0.00020894,2]
[312829449,1706311211486,150.0,0.00020894,2]
[312829450,1706311211701,150.0,0.00020894,2]
[312829451,1706311211922,150.0,0.00020894,2]
[312829452,1706311212104,150.0,0.00020894,2]
[312829453,1706311212273,204.22,0.00021358,2]
[312829454,1706311212317,150.0,0.00020894,2]
[312829455,1706311212513,150.0,0.00020894,2]
[312829456,1706311212738,150.0,0.00020894,2]
[312829457,1706311212931,150.0,0.00020894,2]
[312829458,1706311213132,150.0,0.00020894,2]
[312829459,1706311213316,150.0,0.00020894,2]
[312829460,1706311213535,150.78141213,0.00020894,2]
[312829461,1706311245090,200.0,0.00021364,2]
[312829462,1706311260854,250.0,0.00021364,2]
[312829463,1706311313055,150.0,0.00021385,2]
[312829464,1706311337871,21113.4,0.00021382,2]
[312829465,1706311356928,170.76,0.00021462,2]
[312829466,1706311361635,169.03,0.00021358,2]
[312829467,1706311374245,198.69,0.00021213,2]
[312829468,1706311391988,151.04276847,0.00021107,2]
[312829469,1706311405961,215.43510353,0.00021619,2]
[312829470,1706311409031,310.6600047,0.00021619,2]
[312829471,1706311411008,169.00136356,0.00021576,2]
[312829472,1706311412321,4253.55434968,0.00021619,2]
[312829474,1706311417922,197.06163695,0.00021619,2]
[312829475,1706311418170,1138.41589394,0.00021619,2]
[312829476,1706311419009,1770.60234352,0.00021619,2]
[312829477,1706311423407,1419.37423398,0.00021619,2]
[312829478,1706311425171,3048.63024709,0.00021619,2]
[312829479,1706311426455,203.62279073,0.00021619,2]
[312829480,1706311431693,155.0,0.00021619,2]
[312829481,1706311432835,281.66433371,0.00021619,2]
[312829482,1706311435630,155.0,0.00021619,2]
[312829483,1706311436746,385.22548142,0.00021619,2]
[312829484,1706311439247,242.86814377,0.00021619,2]
[312829485,1706311441355,202.99988448,0.00021619,2]
[312829486,1706311443648,2323.45228506,0.00021619,2]
[312829487,1706311443933,1319.09295486,0.00021619,2]
[312829488,1706311445807,338.17308084,0.00021619,2]
[312829489,1706311448855,281.31888205,0.00021404,2]
[312829490,1706311456167,260.59533858,0.00021619,2]
[312829491,1706311463606,33419.76611237,0.00021619,2]
[312829492,1706311473139,302.72900605,0.00021619,2]
[312829493,1706311483248,222.57,0.00019475,2]
[312829494,1706311489068,200.0,0.0002128,2]
[312829495,1706311493271,2000.0,0.0002128,2]
[312829496,1706311529317,6448.89421292,0.00021619,2]
[312829497,1706311570468,233.25,0.00021366,2]
[312829498,1706311570674,233.25,0.00021424,2]
[312829499,1706311570884,233.25,0.00021483,2]
[312829500,1706311571103,233.25,0.00021542,2]
[312829501,1706311571334,233.25,0.000216,2]
[312829502,1706311580156,289.55,0.00020917,2]
[312829503,1706311592157,954.7,0.00021084,2]
[312829504,1706311609327,488.0,0.00020925,2]
[312829506,1706311621511,150.0,0.00021619,2]
[312829507,1706311621543,150.0,0.00021619,2]
[312829509,1706311663638,204.22,0.00020925,2]
[312829511,1706311673962,23900.0,0.00020943,2]
[312829513,1706311709954,250.0,0.00020943,2]
[312829515,1706311724057,150.0,0.00020943,2]
[312829525,1706311726058,165.06,0.00020943,2]
[312829528,1706311767672,-918.69940529,0.0002162,2]
[312829529,1706311767692,-215.43510353,0.0002162,2]
[312829530,1706311767712,-406.04868973,0.0002162,2]
[312829531,1706311767731,-1135.3626195,0.0002162,2]
[312829532,1706311767751,-196.89353591,0.0002162,2]
[312829533,1706311767771,-1709.0238305,0.0002162,2]
[312829534,1706311767794,-1419.37423398,0.0002162,2]
[312829535,1706311767815,-155.0,0.0002162,2]
[312829536,1706311767835,-203.45920729,0.0002162,2]
[312829537,1706311767857,-385.22548142,0.0002162,2]
[312829538,1706311767878,-155.0,0.0002162,2]
[312829539,1706311767899,-242.47347017,0.0002162,2]
[312829540,1706311767920,-202.22871767,0.0002162,2]
[312829541,1706311767943,-276.48422369,0.0002162,2]
[312829542,1706311767963,-1319.09295486,0.0002162,2]
[312829543,1706311767985,-337.89664822,0.0002162,2]
[312829544,1706311768004,-226.28651302,0.0002162,2]
[312829545,1706311768025,-1032.62495001,0.00021621,2]
[312829546,1706311768046,-22635.3430364,0.00021624,2]
[312829547,1706311768066,-233.25,0.00021659,2]
[312829548,1706311768087,-153.12001434,0.00021679,2]
[312829549,1706311768107,-1000.0,0.00021693,2]
[312829550,1706311768127,-318.99984247,0.00021693,2]
[312829551,1706311768148,-233.25,0.00021717,2]
[312829552,1706311768168,-222.57,0.00021739,2]
[312829553,1706311768189,-233.25,0.00021776,2]
[312829554,1706311768209,-153.12001434,0.00021778,2]
[312829555,1706311768229,-341.87083974,0.00021791,2]
[312829556,1706311768248,-150.99,0.00021791,2]
[312829557,1706311768270,-2234.4,0.00021791,2]
[312829558,1706311768290,-1234.22666792,0.00021792,2]
[312829587,1706311832344,-301.77033695,0.00021791,2]
[312829588,1706311832354,-214.16708375,0.00021791,2]
[312829589,1706311832363,-582.34359272,0.00021791,2]
[312829590,1706311832373,-384.75246824,0.00021791,2]
[312829591,1706311832386,-176.13446993,0.00021791,2]
[312829592,1706311832403,-1142.95848493,0.00021791,2]
[312829593,1706311832416,-334.70344966,0.00021791,2]
[312829594,1706311832432,-582.91877811,0.00021791,2]
[312829595,1706311832443,-1401.40734189,0.00021792,2]
[312829596,1706311832464,-3129.09071573,0.00021792,2]
[312829597,1706311832480,-678.23466388,0.00021792,2]
[312829598,1706311832493,-1519.03176152,0.00021793,2]
[312829599,1706311832509,-482.7320001,0.00021793,2]
[312829600,1706311832524,-1607.61847118,0.00021793,2]
[312829601,1706311832545,-428901.6991672,0.00021793,2]
[312829602,1706311832556,-3624.15,0.00021793,2]
[312829603,1706311832566,-233.25,0.00021835,2]
[312829604,1706311832578,-155.0,0.00021843,2]
[312829605,1706311832591,-543.55682798,0.00021843,2]
[312829606,1706311832602,-314.64308926,0.00021843,2]
[312829607,1706311832614,-250.61147486,0.00021843,2]
[312829608,1706311832626,-233.47228748,0.00021843,2]
[312829609,1706311832638,-5221.14240979,0.00021844,2]
[312829611,1706311832650,-266.53,0.00021871,2]
[312829613,1706311832661,-153.12001434,0.00021877,2]
[312829614,1706311832671,-16781.96707607,0.00021893,2]
[312829616,1706311832684,-233.25,0.00021893,2]
[312829618,1706311832698,-499.99,0.00021894,2]
[312829620,1706311832709,-757.33,0.00021908,2]
[312829622,1706311832723,-250.0,0.00021918,2]
[312829624,1706311832735,-233.25,0.00021952,2]
[312829626,1706311832746,-153.12001434,0.00021976,2]
[312829627,1706311832757,-5754.56927585,0.00021996,2]
[312829629,1706311832769,-2456.77238093,0.00021998,2]
[312829631,1706311832781,-500.0,0.00022,2]
[312829633,1706311832793,-150.0,0.00022,2]
[312829635,1706311832808,-233.25,0.0002201,2]
[312829637,1706311832821,-233.25,0.00022069,2]
[312829639,1706311832834,-153.12001434,0.00022075,2]
[312829641,1706311832847,-2339.9487561,0.00022079,2]
[312829643,1706311832859,-233.25,0.00022128,2]
[312829645,1706311832871,-153.12001434,0.00022174,2]
[312829647,1706311832882,-233.25,0.00022186,2]
[312829649,1706311832892,-233.25,0.00022245,2]
[312829650,1706311832903,-153.12001434,0.00022274,2]
[312829652,1706311832914,-233.25,0.00022303,2]
[312829654,1706311832926,-233.25,0.00022362,2]
[312829656,1706311832939,-153.12001434,0.00022373,2]
[312829658,1706311832951,-233.25,0.00022421,2]
[312829660,1706311832963,-153.12001434,0.00022472,2]
[312829662,1706311832975,-233.25,0.00022479,2]
[312829664,1706311832986,-2001.0,0.00022542,2]
[312829666,1706311832998,-500.0,0.00022548,2]
[312829667,1706311833009,-150.0,0.00022548,2]
[312829669,1706311833021,-167.59,0.00022558,2]
[312829671,1706311833035,-289.55,0.00022561,2]
[312829673,1706311833047,-153.12001434,0.00022571,2]
[312829675,1706311833059,-817.43473583,0.000226,2]
[312829677,1706311833071,-13680.0634,0.000226,2]
[312829679,1706311833083,-153.12001434,0.0002267,2]
[312829681,1706311833095,-205.01148946,0.0002269,2]
[312829683,1706311833108,-171.76343883,0.00022698,2]
[312829685,1706311833121,-528.94657984,0.00022698,2]
[312829687,1706311833133,-1709.91135821,0.00022698,2]
[312829689,1706311833145,-155.0,0.00022698,2]
[312829691,1706311833156,-155.0,0.00022698,2]
[312829693,1706311833167,-158.85685373,0.00022698,2]
[312829695,1706311833178,-182.39401206,0.00022698,2]
[312829697,1706311833190,-228.37737602,0.00022698,2]
[312829698,1706311833206,-160.72902007,0.00022698,2]
[312829700,1706311833218,-260.39182374,0.00022698,2]
[312829702,1706311833230,-1854.56150247,0.00022698,2]
[312829704,1706311833241,-302.48458751,0.00022698,2]
[312829706,1706311833253,-19806.63265384,0.00022699,2]
[312829708,1706311833264,-100000.0,0.000227,2]
[312829710,1706311833276,-9734.7174,0.000227,2]
[312829712,1706311833287,-216.84,0.00022746,2]
[312829714,1706311833298,-153.12001434,0.00022769,2]
[312829716,1706311833310,-155.0,0.00022769,2]
[312829718,1706311833321,-153.12001434,0.00022868,2]
[312829719,1706311833333,-10001.538,0.000229,2]
[312829721,1706311833344,-1259.49131083,0.000229,2]
[312829722,1706311833354,-5380.5106956,0.000229,2]
[312829723,1706311833365,-287.93703842,0.000229,2]
[312829724,1706311833376,-550.24892288,0.000229,2]
[312829725,1706311833388,-200.70951817,0.000229,2]
[312829726,1706311833400,-202.44846815,0.000229,2]
[312829727,1706311833412,-153.12001434,0.00022967,2]
[312829728,1706311833423,-153.64564503,0.00022967,2]
[312829729,1706311833435,-1042.75274625,0.00022998,2]
[312829730,1706311833448,-98348.71417608,0.00023,2]
[312829731,1706311833488,-150.0,0.00022,2]
[312829732,1706311833499,-1358.325507,0.00023,2]
[312829733,1706311833523,-1027.13885188,0.00023,2]
[312829734,1706311833625,-316.617,0.00023,2]
[312829735,1706311833638,-2983.88558587,0.00023,2]
[312829736,1706311833652,-2952.48971687,0.00023,2]
[312829737,1706311833666,-4353.7,0.00023,2]
[312829738,1706311833679,-1484.89940622,0.00023,2]
[312829739,1706311833692,-958.19999987,0.00023,2]
[312829740,1706311833711,-3805.44423727,0.00023,2]
[312829747,1706311838897,-500.0,0.00022,2]
[312829748,1706311838906,-216.94,0.00022283,2]
[312829749,1706311838915,-150.0,0.00022548,2]
[312829750,1706311838924,-450.0738514,0.00023,2]
[312829751,1706311838936,-827.13959953,0.00023,2]
[312829752,1706311838948,-2122.63174215,0.00023,2]
[312829753,1706311838964,-42075.69657074,0.00023,2]
[312829754,1706311839008,-668.6549,0.00023,2]
[312829755,1706311839065,-730.32767556,0.00023,2]
[312829756,1706311839076,-623.31486525,0.00023,2]
[312829757,1706311839123,-438.0299985,0.00023,2]
[312829758,1706311839135,-335.79546006,0.00023,2]
[312829759,1706311839178,-403.76240377,0.00023,2]
[312829930,1706311840914,-240.40448428,0.000229,2]
[312829931,1706311840923,-768.40725075,0.00023,2]
[312829932,1706311840970,-280.414709,0.00023,2]
[312829933,1706311840982,-251993.50829828,0.00023,2]
[312829934,1706311841031,-807.2970511,0.00023,2]
[312829935,1706311841723,-658.38525432,0.00023,2]
[312829936,1706311841780,-4371.5906833,0.00023,2]
[312829937,1706311841791,-274.31200749,0.00023,2]
[312829938,1706311841807,-383.04573902,0.00023,2]
[312829952,1706311843886,-400.0,0.00023,2]
[312829954,1706311843943,-410.5399995,0.00023,2]
[312829956,1706311843955,-4884.48,0.00023,2]
[312829957,1706311844108,-930.40834102,0.00023,2]
[312829958,1706311844119,-474.17972,0.00023,2]
[312829959,1706311844165,-244.9312261,0.000229,2]
[312829960,1706311844175,-182.17232037,0.00023,2]
[312829961,1706311844186,-428.982312,0.00023,2]
[312829968,1706311846445,-7567.08157827,0.00023,2]
[312829969,1706311846572,-3795.05126393,0.00023,2]
[312829970,1706311846583,-11024.20335073,0.00023,2]
[312829971,1706311846595,-1226.36147996,0.00023,2]
[312829972,1706311846606,-13513.79753153,0.00023,2]
[312829973,1706311846618,-1141.71947878,0.00023,2]
[312829974,1706311846670,-10637.71281237,0.00023,2]
[312829975,1706311846682,-1581.2678062,0.00023,2]
[312829976,1706311972604,215.84,0.0002056,2]
[312829977,1706312061766,160.60960633,0.00021582,2]
[312829978,1706312143280,150.0,0.00021611,2]
[312829979,1706312247595,-521.73679604,0.00021666,2]
[312829980,1706312247616,-301.77033695,0.00021666,2]
[312829981,1706312247641,-327.81679963,0.00021666,2]
[312829982,1706312247661,-3131.46884188,0.00021667,2]
[312829983,1706312247682,-1319.09295486,0.00021668,2]
[312829984,1706312247704,-3048.63024709,0.00021668,2]
[312829985,1706312247728,-502.2125192,0.00021669,2]
[312829986,1706312247750,-3059.27150435,0.00021669,2]
[312829987,1706312419177,215.16,0.00019713,2]
[312829988,1706312452636,200.0,0.00021579,2]
[312829989,1706312471946,390.4,0.00021583,2]
[312829990,1706312492134,161.3772069,0.00021527,2]
[312829991,1706312502040,2000.0,0.00021571,2]
[312829992,1706312515348,19432.1,0.00021569,2]
[312829993,1706312564293,168.68,0.00021514,2]
[312829994,1706312581956,250.0,0.00021569,2]
[312829995,1706312622498,868.47252071,0.0002162,2]
[312829996,1706312632971,162.48097775,0.0002162,2]
[312829997,1706312636355,-395.80950377,0.00021621,2]
[312829998,1706312636377,-3048.63024709,0.00021621,2]
[312829999,1706312636399,-284.0,0.00021629,2]
[312830000,1706312636423,-736.6,0.00021691,2]
[312830001,1706312636492,-236.27,0.00021693,2]
[312830002,1706312636570,-885.2945,0.00021693,2]
[312830003,1706312636603,-169.03,0.00021706,2]
[312830004,1706312636628,-216.94,0.00021738,2]
[312830005,1706312636649,-3123.98413026,0.00021753,2]
[312830006,1706312636674,-161.37720688,0.00021802,2]
[312830007,1706312636704,-397.064412,0.00021918,2]
[312830008,1706312709473,1228.53056958,0.00020518,2]
[312830009,1706312727463,223.54912128,0.00020518,2]
[312830010,1706312733769,245.0,0.00020629,2]
[312830011,1706312876611,226.61,0.00019796,2]
[312830013,1706312951561,1933.59,0.00021491,2]
[312830014,1706312964766,613.83,0.00021533,2]
[312830016,1706313031534,-421.87460659,0.00021754,2]
[312830017,1706313031546,-897.21834827,0.00021754,2]
[312830018,1706313031555,-250.71178786,0.00021755,2]
[312830019,1706313031564,-1357.14658385,0.00021755,2]
[312830020,1706313031587,-1691.48366324,0.00021755,2]
[312830021,1706313031596,-302.72900605,0.00021756,2]
[312830022,1706313031605,-3529.62802153,0.00021756,2]
[312830023,1706313031616,-1176.63702867,0.00021756,2]
[312830024,1706313031627,-150.0,0.0002176,2]
[312830025,1706313031636,-8381.32887775,0.00021762,2]
[312830026,1706313031645,-165.83,0.00021766,2]
[312830027,1706313031654,-150.0,0.00021896,2]
[312830028,1706313031663,-736.77,0.000219,2]
[312830029,1706313031672,-729.46,0.00021915,2]
[312830030,1706313031681,-720.25,0.00021917,2]
[312830031,1706313031690,-717.69,0.00021917,2]
[312830032,1706313031699,-728.42,0.00021917,2]
[312830033,1706313031709,-10000.0,0.00021918,2]
[312830035,1706313031864,-216.72,0.00021918,2]
[312830036,1706313031874,-250.0,0.00021918,2]
[312830037,1706313031883,-1072.08720295,0.00021918,2]
[312830038,1706313031899,-2096.42279705,0.00021918,2]
[312830039,1706313031908,-353.0,0.00022,2]
[312830040,1706313031918,-500.0,0.00022,2]
[312830041,1706313031927,-150.99,0.00022,2]
[312830042,1706313031936,-226.61,0.0002206,2]
[312830043,1706313031945,-161.37720688,0.00022076,2]
[312830044,1706313031954,-1518.70500028,0.00022077,2]
[312830045,1706313031963,-609.6,0.00022108,2]
[312830046,1706313031972,-1800.89338139,0.00022307,2]
[312830047,1706313031984,-274.03939598,0.00022307,2]
[312830048,1706313031993,-161.37720688,0.00022351,2]
[312830049,1706313032003,-114.58339714,0.00022548,2]
[312830050,1706313032014,-385.41660286,0.00022548,2]
[312830051,1706313032024,-395.01725216,0.0002257,2]
[312830052,1706313032033,-161.37720688,0.00022625,2]
[312830053,1706313032042,-2339.25370071,0.0002269,2]
[312830054,1706313032054,-493.225165,0.0002269,2]
[312830055,1706313032063,-155.0,0.00022698,2]
[312830056,1706313032072,-113.03562065,0.00022699,2]
[312830058,1706313037575,-142.43290795,0.00022699,2]
[312830059,1706313037584,-500.0,0.000227,2]
[312830060,1706313037593,-1000.0,0.000227,2]
[312830061,1706313037602,-658.76029205,0.000227,2]
[312830062,1706313037614,-9298.42526999,0.000227,2]
[312830063,1706313037626,-827.91845062,0.000227,2]
[312830064,1706313037669,-1798.10956692,0.000227,2]
[312830065,1706313037681,-58899.67852042,0.000227,2]
[312830066,1706313037690,-1000.0,0.000227,2]
[312830067,1706313037699,-2500.0,0.000227,2]
[312830068,1706313037708,-542.9788324,0.000227,2]
[312830069,1706313037718,-150.0,0.00022718,2]
[312830070,1706313037727,-24924.01710779,0.0002275,2]
[312830071,1706313037737,-280.90703819,0.00022767,2]
[312830072,1706313037746,-155.0,0.00022767,2]
[312830073,1706313037755,-22597.43176526,0.00022767,2]
[312830074,1706313037765,-442.69707047,0.00022798,2]
[312830075,1706313037774,-162.03974412,0.00022798,2]
[312830076,1706313037784,-488.69474498,0.00022798,2]
[312830077,1706313037793,-473.80661658,0.00022798,2]
[312830078,1706313037804,-155.15798677,0.00022798,2]
[312830079,1706313037812,-306.4337,0.000228,2]
[312830080,1706313037821,-8359.8173,0.000228,2]
[312830081,1706313037830,-245000.0,0.000228,2]
[312830082,1706313037839,-50147.4402,0.000228,2]
[312830083,1706313037848,-155.59197994,0.00022882,2]
[312830084,1706313037857,-6852.7147,0.00022895,2]
[312830085,1706313037867,-167.5730933,0.00022897,2]
[312830086,1706313037877,-173.38532494,0.00022897,2]
[312830087,1706313037886,-259.70255995,0.00022897,2]
[312830088,1706313037895,-676.47029997,0.00022897,2]
[312830090,1706313037904,-406.10089148,0.00022898,2]
[312830092,1706313037912,-329.46762021,0.00022898,2]
[312830094,1706313037921,-942.61337864,0.00022898,2]
[312830095,1706313037930,-16186.9627,0.000229,2]
[312830097,1706313037939,-159.63534123,0.000229,2]
[312830099,1706313037948,-161.37720688,0.000229,2]
[312830101,1706313037956,-45076.6141,0.000229,2]
[312830102,1706313037965,-188.46955123,0.00022985,2]
[312830104,1706313037974,-188.46955123,0.0002299,2]
[312830106,1706313037984,-412.75724785,0.00022992,2]
[312830108,1706313037993,-386.14915667,0.00022993,2]
[312830109,1706313038002,-225.92819816,0.00022993,2]
[312830111,1706313038011,-482.12277628,0.00022993,2]
[312830113,1706313038020,-767.2821241,0.00022993,2]
[312830115,1706313038029,-1070.43397792,0.00022993,2]
[312830116,1706313038038,-2946.28489302,0.00022993,2]
[312830118,1706313038047,-155.0,0.00022993,2]
[312830120,1706313038056,-155.0,0.00022993,2]
[312830122,1706313038066,-155.0,0.00022994,2]
[312830124,1706313038075,-156.90279675,0.00022994,2]
[312830125,1706313038084,-41380.5771247,0.00022994,2]
[312830127,1706313038093,-3141.46220806,0.00022995,2]
[312830129,1706313038102,-155.25318019,0.00022995,2]
[312830130,1706313038111,-155.0,0.00022995,2]
[312830132,1706313038120,-257.41602689,0.00022995,2]
[312830134,1706313038129,-1719.54666288,0.00022995,2]
[312830136,1706313038139,-155.0,0.00022995,2]
[312830138,1706313038148,-4268.7274813,0.00022995,2]
[312830139,1706313038157,-155.0,0.00022995,2]
[312830141,1706313038167,-286.48266102,0.00022995,2]
[312830143,1706313038179,-516.33591536,0.00022995,2]
[312830145,1706313038188,-318.96402389,0.00022995,2]
[312830147,1706313038198,-171.73093238,0.00022995,2]
[312830148,1706313038207,-3031.20814747,0.00022995,2]
[312830150,1706313038216,-321.63589353,0.00022995,2]
[312830152,1706313038226,-189.37617423,0.00022995,2]
[312830154,1706313038235,-155.0,0.00022995,2]
[312830156,1706313038244,-2896.88322903,0.00022995,2]
[312830157,1706313038254,-155.49151411,0.00022995,2]
[312830159,1706313038263,-195.3246737,0.00022995,2]
[312830161,1706313038272,-155.89696846,0.00022995,2]
[312830163,1706313038281,-400.09694554,0.00022995,2]
[312830165,1706313038290,-3803.65898675,0.00022995,2]
[312830166,1706313038300,-279.08372278,0.00022995,2]
[312830167,1706313038309,-220.37851532,0.00022995,2]
[312830168,1706313038318,-400.0,0.00022995,2]
[312830169,1706313038327,-244.84553355,0.00022995,2]
[312830170,1706313038336,-6581.42553432,0.00022995,2]
[312830171,1706313038346,-475.84102699,0.00022995,2]
[312830172,1706313038355,-188.83296295,0.00022995,2]
[312830173,1706313038365,-23049.27117532,0.00022995,2]
[312830174,1706313038374,-524.21526262,0.00022995,2]
[312830175,1706313038383,-509.67148145,0.00022995,2]
[312830176,1706313038392,-155.0,0.00022995,2]
[312830177,1706313038402,-2306.1350303,0.00022995,2]
[312830178,1706313038410,-1499.36309637,0.00022995,2]
[312830180,1706313038420,-528.94869932,0.00022995,2]
[312830181,1706313038431,-4024.28875679,0.00022996,2]
[312830183,1706313038441,-155.0,0.00022996,2]
[312830185,1706313038450,-155.0,0.00022996,2]
[312830187,1706313038459,-695.62649038,0.00022996,2]
[312830189,1706313038469,-155.0,0.00022997,2]
[312830191,1706313038478,-199.40820147,0.00022997,2]
[312830193,1706313038487,-161.96665803,0.00022997,2]
[312830195,1706313038496,-1043.15716476,0.00022997,2]
[312830197,1706313038504,-263.27381778,0.00022997,2]
[312830199,1706313038515,-1819.86227135,0.00022997,2]
[312830201,1706313038525,-1745.41156834,0.00022997,2]
[312830203,1706313038534,-536.98559099,0.00022997,2]
[312830205,1706313038543,-3814.64588633,0.00022997,2]
[312830207,1706313038552,-582.70384693,0.00022997,2]
[312830209,1706313038561,-202.75380739,0.00022997,2]
[312830211,1706313038570,-2320.66182415,0.00022997,2]
[312830213,1706313038579,-155.0,0.00022997,2]
[312830215,1706313038589,-303.36611773,0.00022997,2]
[312830217,1706313038598,-434.83246994,0.00022997,2]
[312830219,1706313038607,-349.86110441,0.00022997,2]
[312830221,1706313038616,-232.69459496,0.00022997,2]
[312830223,1706313038626,-805218.66456337,0.00022997,2]
[312830225,1706313038638,-241495.98833628,0.00022997,2]
[312830228,1706313038654,-2809.7376293,0.00022997,2]
[312830230,1706313038665,-758.36707319,0.00022997,2]
[312830232,1706313038676,-630.15733632,0.00022997,2]
[312830235,1706313038691,-7290.53134588,0.00022997,2]
[312830237,1706313038699,-239.68010938,0.00022997,2]
[312830239,1706313038708,-155.6556456,0.00022997,2]
[312830241,1706313038717,-226.10769564,0.00022997,2]
[312830243,1706313038726,-155.0,0.00022997,2]
[312830245,1706313038736,-629.38987952,0.00022997,2]
[312830246,1706313038745,-155.27713894,0.00022997,2]
[312830247,1706313038754,-174.04224222,0.00022997,2]
[312830248,1706313038765,-3329.35169132,0.00022997,2]
[312830249,1706313038774,-203.27164053,0.00022997,2]
[312830250,1706313038783,-295.34953421,0.00022997,2]
[312830251,1706313038792,-759.00584575,0.00022997,2]
[312830252,1706313038801,-177.03900114,0.00022997,2]
[312830253,1706313038810,-155.20765287,0.00022997,2]
[312830254,1706313038819,-155.15760888,0.00022997,2]
[312830255,1706313038828,-155.0,0.00022997,2]
[312830256,1706313038837,-157.08861122,0.00022997,2]
[312830257,1706313038846,-228.31791619,0.00022997,2]
[312830258,1706313038855,-1310.59267949,0.00022997,2]
[312830259,1706313038864,-160.11586494,0.00022997,2]
[312830260,1706313038874,-369.96545331,0.00022997,2]
[312830261,1706313038883,-16768.41488777,0.00022997,2]
[312830262,1706313038893,-377.0614235,0.00022997,2]
[312830263,1706313038902,-367.80860718,0.00022997,2]
[312830264,1706313038912,-978.52916878,0.00022997,2]
[312830265,1706313038921,-155.35383227,0.00022997,2]
[312830266,1706313038931,-196.41393607,0.00022997,2]
[312830267,1706313038940,-4785.03700035,0.00022997,2]
[312830268,1706313038949,-177.58629654,0.00022997,2]
[312830269,1706313038958,-157.79496172,0.00022997,2]
[312830270,1706313038968,-155.0,0.00022997,2]
[312830271,1706313038976,-2611.83116676,0.00022997,2]
[312830272,1706313038987,-652.06705863,0.00022998,2]